bitfinex-derivatives/quotes_ETHF0:USTF0_20240901
["timestamp","ask_amount","ask_price","bid_price","bid_amount"]
[1725157264008,3.13,2482.6,2482.2,1.278]
[1725157264308,8.68590228,2482.5,2482.1,4.3691]
[1725157264505,12.29654228,2482.5,2482.1,1.1613]
[1725157264816,7.39384035,2482.5,2482.1,0.00604035]
[1725157265106,4.50590228,2482.4,2482.1,0.00604035]
[1725157265697,7.3878,2482.2,2482.1,0.00604035]
[1725157266006,7.3878,2482.2,2481.0,0.0202]
[1725157266007,12.02656005,2482.2,2481.0,0.0202]
[1725157266219,4.18,2481.1,2481.0,0.0202]
[1725157266502,3.2078,2481.6,2481.0,0.0202]
[1725157267009,4.41479471,2481.5,2481.1,0.00604035]
[1725157267205,4.18,2481.7,2481.1,3.80114035]
[1725157267400,3.21384035,2482.5,2481.7,0.40295]
[1725157267704,4.51439363,2482.0,2481.1,5.72924035]
[1725157267901,4.18,2481.9,2481.2,1.2797]
[1725157268304,4.51439363,2481.8,2481.2,1.2797]
[1725157268998,4.51439363,2481.8,2481.3,0.40302]
[1725157269202,3.2078,2482.0,2481.4,4.43261]
[1725157269397,4.18,2482.2,2481.4,0.40301]
[1725157269609,4.18,2482.2,2481.6,0.40297]
[1725157269913,4.40923035,2482.1,2481.7,1.2497]
[1725157270105,4.40923035,2482.1,2481.8,1.278]
[1725157270506,7.61703035,2482.1,2481.4,3.2078]
[1725157270707,4.40923035,2482.1,2481.5,2.4823]
[1725157270912,4.18,2482.2,2481.5,2.88529]
[1725157271315,4.62084938,2482.1,2481.5,2.88529]
[1725157271611,4.62084938,2482.1,2481.5,2.4823]
[1725157271813,4.62084938,2482.1,2481.6,0.40298]
[1725157272009,4.62084938,2482.1,2481.5,2.8853]
[1725157273012,4.62084938,2482.1,2481.6,0.40298]
[1725157273222,4.62084938,2482.1,2481.5,2.4823]
[1725157274099,4.18,2481.6,2481.1,0.00604035]
[1725157274303,4.18,2481.9,2481.2,1.2441]
[1725157274506,4.18,2481.9,2481.4,0.40301]
[1725157274707,4.66377079,2481.7,2481.6,0.40298]
[1725157274909,4.18,2482.2,2481.2,8.58574047]
[1725157275117,4.62084938,2482.0,2481.5,0.403]
[1725157275311,4.66377079,2482.1,2481.6,1.2586]
[1725157275506,3.2078,2482.0,2481.6,1.2586]
[1725157275909,4.30700082,2481.9,2481.6,1.2586]
[1725157276207,4.18,2482.2,2481.7,1.2068]
[1725157276414,4.18,2482.2,2481.8,0.40295]
[1725157276610,4.18,2482.2,2481.8,1.60735]
[1725157276611,4.50887787,2482.1,2481.8,1.60735]
[1725157276815,4.50887787,2482.1,2481.8,1.2044]
[1725157277003,4.50887787,2482.1,2481.8,1.60734]
[1725157277205,4.18,2482.2,2481.8,1.60734]
[1725157277407,3.2078,2482.4,2481.8,1.2044]
[1725157277818,3.2078,2482.4,2481.8,1.60734]
[1725157278121,3.2078,2482.4,2481.8,1.2044]
[1725157278415,4.65278944,2482.3,2481.8,1.2044]
[1725157278713,4.18,2482.2,2481.8,1.2044]
[1725157278920,4.58289,2482.2,2481.8,1.2044]
[1725157279107,4.54823747,2482.1,2481.8,1.2044]
[1725157279309,4.95113747,2482.1,2481.8,1.2044]
[1725157279505,4.54823747,2482.1,2481.8,1.2044]
[1725157280115,4.54823747,2482.1,2481.8,5.63614]
[1725157280413,0.40293,2482.0,2481.7,3.2078]
[1725157280709,8.626806,2481.9,2481.7,3.2078]
[1725157281211,4.18,2481.9,2481.7,3.2078]
[1725157281410,0.40289,2482.2,2481.7,7.2374]
[1725157281411,4.18,2482.2,2481.7,7.2374]
[1725157281710,4.18,2482.2,2481.8,0.40294]
[1725157281711,4.24682049,2482.1,2481.8,0.40294]
[1725157281907,4.24682049,2482.1,2481.9,1.2423]
[1725157282106,4.24682049,2482.1,2481.9,1.64523]
[1725157283214,4.24682049,2482.1,2482.0,0.40292]
[1725157283411,4.18,2482.2,2482.0,0.40292]
[1725157283811,3.2078,2482.4,2482.0,4.0288]
[1725157284010,0.00604035,2482.5,2482.4,0.40285]
[1725157284213,0.00604035,2482.5,2482.4,1.63205]
[1725157284414,0.00604035,2482.5,2482.4,5.66005]
[1725157285103,0.00604035,2482.5,2482.4,11.66005]
[1725157286220,3.2078,2483.3,2482.4,11.2572]
[1725157286411,4.18,2483.5,2482.6,3.2078]
[1725157286712,7.3878,2483.8,2483.5,0.40267]
[1725157286907,4.18,2483.8,2483.7,0.40264]
[1725157288020,0.00604035,2484.0,2483.7,0.40264]
[1725157288217,0.00604035,2484.0,2483.5,0.00604035]
[1725157288411,4.23807313,2483.9,2483.6,0.40264]
[1725157289318,4.23807313,2483.9,2483.8,0.40262]
[1725157289616,1.00626,2484.6,2483.8,0.40262]
[1725157289617,0.7168,2484.7,2483.8,6.0]
[1725157289821,4.18,2484.7,2484.0,3.2078]
[1725157290024,0.40254,2484.3,2483.7,0.40263]
[1725157290314,0.40254,2484.3,2483.5,0.00604035]
[1725157290315,0.40258,2484.1,2483.5,1.23754035]
[1725157290710,0.00604035,2484.0,2483.5,1.64021035]
[1725157291118,0.00604035,2484.0,2483.5,1.23754035]
[1725157291316,4.56084895,2483.9,2483.5,1.23754035]
[1725157292515,4.56084895,2483.9,2483.5,1.64021035]
[1725157293119,4.56084895,2483.9,2483.5,0.00604035]
[1725157293816,0.40264,2483.7,2483.5,0.00604035]
[1725157294122,4.56084895,2483.9,2483.5,0.00604035]
[1725157294123,0.40262,2483.8,2483.5,0.00604035]
[1725157294323,4.56084895,2483.9,2483.5,0.00604035]
[1725157294524,0.40266,2483.6,2483.5,0.00604035]
[1725157294715,4.22572079,2483.6,2483.5,0.00604035]
[1725157294912,16.68414088,2483.6,2483.5,0.00604035]
[1725157295114,16.68414088,2483.6,2482.7,3.2078]
[1725157295115,16.48482009,2483.6,2482.7,3.2078]
[1725157295421,4.58275,2483.1,2482.7,3.2078]
[1725157295820,4.43011103,2483.0,2482.7,3.2078]
[1725157296219,8.45811103,2483.0,2482.7,3.2078]
[1725157296415,8.86086103,2483.0,2482.7,3.2078]
[1725157296617,10.77366103,2483.0,2482.7,3.2078]
[1725157297023,10.77366103,2483.0,2482.6,0.00604035]
[1725157297220,6.74566103,2483.0,2482.6,0.00604035]
[1725157297825,6.34291103,2483.0,2482.6,0.00604035]
[1725157298026,6.74567103,2483.0,2482.6,0.00604035]
[1725157298328,6.34291103,2483.0,2482.6,0.00604035]
[1725157298621,4.43011103,2483.0,2482.6,0.40884035]
[1725157298826,4.18,2483.4,2482.6,4.03404035]
[1725157299024,4.18,2483.4,2482.7,2.4357]
[1725157299216,0.715,2483.5,2483.1,0.40274]
[1725157299217,4.30413808,2483.3,2483.1,0.40274]
[1725157299519,0.40267,2483.5,2482.9,1.2218]
[1725157299721,3.2078,2483.4,2482.9,1.2218]
[1725157299916,0.40272,2483.3,2482.9,1.2218]
[1725157300419,0.4027,2483.4,2482.9,1.2218]
[1725157300614,0.7152,2483.6,2483.0,0.40275]
[1725157300821,4.29534768,2483.3,2483.0,0.40275]
[1725157301022,4.29534768,2483.5,2483.1,0.40274]
[1725157301222,5.84625,2483.7,2482.9,1.2218]
[1725157301223,5.4436,2483.7,2482.9,1.2218]
[1725157301521,0.40272,2483.2,2482.9,1.2218]
[1725157301719,0.40271,2483.3,2482.9,1.2218]
[1725157301921,0.40272,2483.2,2482.9,1.2218]
[1725157302122,3.923,2483.6,2482.9,1.2218]
[1725157302123,0.40271,2483.3,2482.9,1.2218]
[1725157303330,4.42513304,2483.5,2483.0,0.40275]
[1725157303923,4.82780304,2483.5,2482.9,1.62456]
[1725157305521,0.40272,2483.3,2482.9,1.2218]
[1725157305728,0.40272,2483.2,2482.9,1.2218]
[1725157305926,4.8301121,2483.2,2482.9,1.2218]
[1725157306122,4.92967,2483.6,2482.9,1.2218]
[1725157306324,4.92967,2483.6,2482.8,4.13384047]
[1725157306325,3.2078,2483.3,2482.8,4.13384047]
[1725157306524,4.8301421,2483.1,2482.8,4.13384047]
[1725157306827,0.40275,2483.1,2482.6,1.16444035]
[1725157307029,4.63608511,2483.0,2482.6,1.56726035]
[1725157307219,4.63608511,2483.0,2482.8,0.40279]
[1725157307420,4.63608511,2483.1,2482.8,0.40279]
[1725157307629,4.63608511,2483.1,2482.6,1.16444035]
[1725157307630,8.2072,2483.1,2482.6,1.16444035]
[1725157307828,0.40278,2482.9,2482.6,1.16444035]
[1725157308331,4.26924039,2482.8,2482.6,1.16444035]
[1725157308729,4.4537215,2482.9,2482.6,1.56725035]
[1725157309026,0.40276,2483.0,2482.6,1.16444035]
[1725157309234,4.4537215,2482.9,2482.6,1.56726035]
[1725157309535,4.8564915,2482.9,2482.6,1.16444035]
[1725157309722,4.4537215,2482.9,2482.6,1.16444035]
[1725157309925,4.62753515,2483.0,2482.6,1.56725035]
[1725157310220,4.58275,2483.1,2482.6,1.56725035]
[1725157310423,4.62753515,2483.0,2482.7,0.40279]
[1725157310817,4.62753515,2483.0,2482.6,1.16444035]
[1725157311033,4.62753515,2483.0,2482.6,5.19244035]
[1725157311331,4.62753515,2483.0,2482.6,1.56725035]
[1725157311332,0.40277,2483.0,2482.6,1.56725035]
[1725157311529,3.2078,2483.3,2482.7,0.4028]
[1725157311830,0.40274,2483.1,2482.7,0.4028]
[1725157312226,4.31652831,2483.0,2482.7,0.4028]
[1725157313035,4.12852854,2483.0,2482.7,0.4028]
[1725157313329,4.12852854,2483.0,2482.6,4.37224035]
[1725157313531,3.2078,2483.3,2482.6,4.37224035]
[1725157313722,1.1947,2483.5,2482.9,3.2078]
[1725157313925,4.68090613,2483.2,2482.9,3.2078]
[1725157314140,0.40272,2483.2,2482.9,3.2078]
[1725157314332,4.4025,2483.5,2482.9,3.2078]
[1725157314629,4.42843054,2483.2,2482.9,3.2078]
[1725157314830,4.42843054,2483.2,2483.0,0.40275]
[1725157315030,0.40269,2483.4,2483.0,0.40275]
[1725157315531,4.42843054,2483.2,2483.0,0.40275]
[1725157315732,4.42843054,2483.3,2483.0,0.40275]
[1725157315929,0.40269,2483.4,2483.0,0.40275]
[1725157316123,4.42746556,2483.3,2483.0,0.40275]
[1725157316334,4.42746556,2483.3,2482.9,3.61057]
[1725157316335,4.83017556,2483.3,2482.9,3.61057]
[1725157316634,0.40272,2483.2,2482.9,3.2078]
[1725157316830,4.20077852,2483.4,2482.9,3.2078]
[1725157316831,0.40271,2483.3,2482.9,3.61057]
[1725157317134,4.60349852,2483.2,2482.9,3.2078]
[1725157317337,0.40272,2483.2,2482.9,3.2078]
[1725157317833,4.20077852,2483.4,2482.7,0.40279]
[1725157317834,4.83448707,2483.1,2482.7,0.40279]
[1725157318132,4.83446707,2483.2,2482.7,0.4028]
[1725157318523,4.43173707,2483.0,2482.7,0.4028]
[1725157318830,4.21072965,2483.1,2482.9,0.40276]
[1725157319024,0.40272,2483.2,2482.8,0.40278]
[1725157319427,4.21072965,2483.1,2482.6,6.46178082]
[1725157319633,4.21072965,2483.1,2482.8,0.40277]
[1725157319935,5.01799849,2483.2,2482.8,0.40277]
[1725157320136,0.40273,2483.2,2482.8,0.40277]
[1725157320331,4.61526849,2483.1,2482.6,10.72022932]
[1725157320533,1.1849,2483.6,2483.1,0.40272]
[1725157320534,1.58757,2483.6,2483.1,0.40272]
[1725157320837,4.39045351,2483.3,2483.2,1.263]
[1725157321035,0.40268,2483.5,2483.2,1.263]
[1725157321338,1.1849,2483.6,2483.2,1.263]
[1725157321339,4.39045351,2483.3,2483.2,1.263]
[1725157321524,0.40271,2483.3,2483.2,1.263]
[1725157321725,4.29361481,2483.3,2483.2,1.263]
[1725157322239,4.29361481,2483.4,2483.2,1.263]
[1725157322436,0.40268,2483.5,2483.2,1.263]
[1725157322629,4.4835636,2483.4,2483.2,1.66571]
[1725157322825,4.8862536,2483.4,2483.2,1.263]
[1725157323025,0.40269,2483.4,2483.2,1.263]
[1725157323335,4.4835636,2483.3,2483.2,1.263]
[1725157324036,4.39366173,2483.4,2483.2,1.263]
[1725157324535,3.99097173,2483.4,2483.2,1.263]
[1725157325031,4.6186206,2483.5,2483.2,1.263]
[1725157325232,1.1849,2483.6,2483.2,1.263]
[1725157325424,4.2159406,2483.4,2483.2,1.263]
[1725157325928,0.40268,2483.5,2483.2,1.263]
[1725157326124,4.60705651,2483.3,2483.2,1.263]
[1725157326537,3.53268,2483.5,2483.2,1.263]
[1725157327033,4.22953681,2483.3,2483.2,1.263]
[1725157327222,4.22953681,2483.4,2483.2,1.263]
[1725157327535,3.13,2483.5,2483.2,1.263]
[1725157327735,4.43282248,2483.4,2483.2,1.66571]
[1725157328436,4.43282248,2483.4,2483.2,2.7163585]
[1725157329527,4.43282248,2483.4,2483.2,2.3136485]
[1725157329835,0.40275,2483.0,2482.9,5.18448897]
[1725157330043,0.40277,2482.9,2482.8,1.0506485]
[1725157330335,0.40279,2482.8,2482.7,1.0506485]
[1725157330732,0.85730883,2482.8,2482.7,1.0506485]
[1725157330939,0.85730883,2482.8,2482.7,3.06549011]
[1725157331233,4.60250005,2482.9,2482.8,0.40278]
[1725157331438,4.60250005,2482.9,2482.8,1.45644984]
[1725157331626,4.60250005,2483.0,2482.8,1.45644984]
[1725157331828,4.31937312,2483.1,2482.8,1.45644984]
[1725157332035,4.31937312,2483.1,2482.8,1.05366984]
[1725157332345,3.13,2483.4,2483.2,0.40271]
[1725157332633,3.13,2483.4,2483.3,1.2194]
[1725157333025,7.545647,2483.4,2483.3,1.2194]
[1725157334227,4.415647,2483.4,2483.3,2.27287357]
[1725157334430,4.415647,2483.4,2483.3,4.287128]
[1725157334634,4.3233299,2483.5,2483.3,4.287128]
[1725157334945,0.40266,2483.6,2483.3,2.27287357]
[1725157335138,4.58639135,2483.5,2483.3,2.27287357]
[1725157336140,4.58639135,2483.5,2483.3,2.67557357]
[1725157336338,3.2078,2483.7,2483.5,0.40266]
[1725157336540,3.2078,2483.7,2483.6,3.5951384]
[1725157336731,3.2078,2483.7,2483.6,3.0680024]
[1725157336934,11.73019841,2483.7,2483.6,1.05392509]
[1725157337335,8.52239841,2483.7,2483.6,1.05392509]
[1725157337545,4.18604035,2484.0,2483.6,3.59495705]
[1725157337755,4.18604035,2484.0,2483.7,1.05397951]
[1725157337938,4.34028066,2483.9,2483.8,1.2688]
[1725157338340,4.34028066,2483.9,2483.8,4.33667482]
[1725157338537,4.34028066,2483.9,2483.8,2.32277951]
[1725157339049,4.34028066,2483.9,2483.4,3.87872126]
[1725157339050,4.0264,2483.8,2483.3,0.20456951]
[1725157339236,0.40267,2483.6,2483.3,0.20456951]
[1725157339444,8.06245007,2483.7,2483.3,0.20456951]
[1725157339648,4.4378488,2483.5,2483.3,0.20456951]
[1725157339835,4.4378488,2483.5,2483.3,1.58096367]
[1725157340143,0.40269,2483.4,2483.3,1.58096367]
[1725157340354,7.3878,2483.4,2483.1,1.58096367]
[1725157340541,7.2107,2483.3,2482.9,1.58096367]
[1725157340852,4.37296279,2483.2,2482.9,1.58096367]
[1725157341345,0.40274,2483.1,2482.9,1.58096367]
[1725157341737,4.61632934,2483.0,2482.9,1.58096367]
[1725157341946,4.61632934,2483.0,2482.9,2.01459316]
[1725157342147,4.61632934,2483.1,2482.9,8.14309017]
[1725157342347,7.3878,2483.4,2483.0,2.01459316]
[1725157342648,4.61632934,2483.2,2483.1,8.54720601]
[1725157342839,4.18,2483.7,2483.1,7.201569]
[1725157343151,4.32568089,2483.5,2483.2,3.59644875]
[1725157343351,4.58265,2483.7,2483.3,4.77794875]
[1725157343541,4.58265,2483.7,2483.4,2.01459316]
[1725157343739,4.19233003,2483.5,2483.3,2.76335559]
[1725157343935,4.19233003,2483.6,2483.4,2.01426213]
[1725157344136,4.58265,2483.7,2483.3,2.76335559]
[1725157344351,4.19233003,2483.6,2483.4,2.01428383]
[1725157344552,4.19233003,2483.6,2483.3,2.76335559]
[1725157344754,4.59499003,2483.6,2483.4,3.59613744]
[1725157345050,4.19233003,2483.6,2483.3,2.76335559]
[1725157345259,4.19233003,2483.6,2483.4,3.59614011]
[1725157345443,4.19233003,2483.6,2483.4,1.58185559]
[1725157345951,4.59499003,2483.6,2483.4,1.58185559]
[1725157346345,3.61047,2483.5,2483.4,1.58185559]
[1725157346548,7.2342,2483.5,2483.2,1.58185559]
[1725157346746,8.67782691,2483.5,2483.2,1.58185559]
[1725157346958,0.40271,2483.3,2483.2,1.58185559]
[1725157347144,5.03397,2483.3,2483.0,1.58185559]
[1725157347452,0.40275,2483.0,2482.9,1.58185559]
[1725157347651,0.40275,2483.0,2482.9,3.5965539]
[1725157347842,9.02245986,2483.0,2482.9,3.5965539]
[1725157348450,19.20245986,2483.0,2482.9,3.5965539]
[1725157348655,0.4028,2482.7,2482.6,0.00604035]
[1725157348843,0.4028,2482.7,2482.4,1.58225131]
[1725157348844,0.40283,2482.5,2482.4,1.58225131]
[1725157349153,0.40295,2481.9,2481.6,1.58225131]
[1725157349348,7.79072,2482.0,2481.6,1.58225131]
[1725157349647,4.59250986,2481.8,2481.5,2.73185131]
[1725157349848,4.16409796,2481.9,2481.6,2.0156568]
[1725157350038,0.00604035,2481.9,2481.8,1.58225131]
[1725157350245,0.00604035,2481.9,2481.8,3.59786355]
[1725157350444,4.33187554,2481.9,2481.8,4.0296]
[1725157350756,4.33187554,2481.9,2481.8,6.04496546]
[1725157350757,0.00604035,2481.9,2481.8,6.04496546]
[1725157350956,0.00604035,2481.9,2481.8,4.43255]
[1725157351255,0.40284,2482.5,2481.8,14.02784002]
[1725157351455,0.40284,2482.5,2481.9,2.3825]
[1725157351651,4.23647423,2482.3,2481.9,2.3825]
[1725157351850,4.23647423,2482.5,2482.0,0.4029]
[1725157352056,7.3878,2482.6,2482.1,0.40289]
[1725157352254,4.33255493,2482.5,2482.0,1.57988741]
[1725157352553,0.00604035,2482.5,2482.3,0.40286]
[1725157352770,0.00604035,2482.5,2482.4,0.40285]
[1725157352951,0.00604035,2482.5,2482.4,4.43085]
[1725157353254,7.3878,2483.2,2482.6,0.40281]
[1725157353255,7.79053,2483.2,2482.6,0.40281]
[1725157353459,7.3878,2483.2,2482.8,0.40278]
[1725157353664,4.61096651,2483.1,2482.8,0.40278]
[1725157353967,4.41233713,2483.3,2482.8,0.40278]
[1725157354252,0.40875035,2483.3,2482.8,0.00604035]
[1725157354454,7.3878,2483.2,2482.8,0.00604035]
[1725157354753,0.40276,2483.0,2482.8,0.00604035]
[1725157354944,0.40277,2482.9,2482.8,0.00604035]
[1725157355150,4.25832756,2482.9,2482.8,0.00604035]
[1725157355348,4.22741187,2482.9,2482.8,0.00604035]
[1725157355551,17.61521187,2482.9,2482.8,0.00604035]
[1725157355859,21.97778171,2482.9,2482.8,0.00604035]
[1725157359052,15.97778171,2482.9,2482.8,0.00604035]
[1725157359355,15.77836984,2482.9,2482.8,0.00604035]
[1725157359759,16.18113984,2482.9,2482.8,0.00604035]
[1725157360654,23.18806984,2482.9,2482.8,0.00604035]
[1725157361653,22.18113984,2482.9,2482.8,0.00604035]
[1725157362058,16.18113984,2482.9,2482.8,0.00604035]
[1725157362756,12.15313984,2482.9,2482.8,0.00604035]
[1725157363255,11.75036984,2482.9,2482.8,0.00604035]
[1725157363454,7.57036984,2482.9,2482.8,0.00604035]
[1725157363760,3.2078,2483.2,2482.8,5.26254035]
[1725157363949,4.45469126,2482.9,2482.8,1.23454035]
[1725157364149,0.40277,2482.9,2482.8,1.23454035]
[1725157364350,11.81857,2482.9,2482.8,0.00604035]
[1725157364560,16.27326126,2482.9,2482.8,0.00604035]
[1725157364757,11.81857,2482.9,2482.8,0.00604035]
[1725157364957,12.8199907,2482.9,2482.8,0.00604035]
[1725157365564,4.2092207,2482.9,2482.8,0.00604035]
[1725157365958,4.28955107,2483.0,2482.8,0.00604035]
[1725157366161,0.00604035,2483.3,2482.9,7.63777]
[1725157366367,0.00604035,2483.3,2483.0,1.61805]
[1725157367063,0.00604035,2483.3,2483.1,0.40273]
[1725157367268,4.27897293,2483.2,2483.0,1.2153]
[1725157367657,4.27897293,2483.2,2483.0,1.61805]
[1725157367855,0.00604035,2483.3,2483.1,4.0272]
[1725157368175,0.00604035,2483.3,2483.2,0.40272]
[1725157368663,0.00604035,2483.3,2483.2,4.42992]
[1725157369175,3.2078,2483.8,2483.5,0.40266]
[1725157369362,4.5826,2484.0,2483.6,1.2647]
[1725157369669,4.49898217,2483.7,2483.6,1.2647]
[1725157369872,4.04320402,2483.9,2483.6,1.2647]
[1725157370070,4.58864035,2484.0,2483.6,1.2647]
[1725157370269,4.46538575,2483.9,2483.6,1.2647]
[1725157370566,0.00604035,2484.0,2483.6,5.6293]
[1725157370869,0.00604035,2484.0,2483.8,0.40262]
[1725157371058,0.00604035,2484.0,2483.7,1.65213]
[1725157371257,0.00604035,2484.0,2483.7,1.2495]
[1725157371258,4.4745087,2483.9,2483.7,1.2495]
[1725157371658,4.4745087,2483.9,2483.6,2.4215]
[1725157372071,4.8771287,2483.9,2483.6,2.4215]
[1725157372667,3.2078,2483.8,2483.2,6.96322788]
[1725157372974,4.22925885,2483.7,2483.3,1.2152]
[1725157373168,4.22925885,2483.7,2483.6,3.61046]
[1725157373476,4.22925885,2483.8,2483.6,0.40266]
[1725157373670,0.00604035,2484.0,2483.6,0.40266]
[1725157373973,0.00604035,2484.0,2483.7,0.40263]
[1725157374165,0.00604035,2484.0,2483.8,1.164]
[1725157374361,0.00604035,2484.0,2483.9,1.2152]
[1725157374564,0.00604035,2484.0,2483.9,2.4177]
[1725157375160,0.00604035,2484.0,2483.9,6.4433]
[1725157375767,0.00604035,2484.0,2483.9,6.84591]
[1725157378164,4.58246,2484.9,2484.4,0.40252]
[1725157378368,4.58246,2484.9,2484.5,0.4025]
[1725157378369,4.18,2484.9,2484.5,0.4025]
[1725157378578,4.25517227,2484.7,2484.6,2.3374]
[1725157378769,0.65799302,2484.8,2484.6,2.3374]
[1725157378963,4.18,2484.9,2484.6,2.3374]
[1725157379277,4.3641411,2484.8,2484.6,2.73989]
[1725157379475,4.3641411,2484.8,2484.6,2.3374]
[1725157379972,0.40248,2484.7,2484.6,2.3374]
[1725157380177,3.2078,2484.7,2484.5,0.00604035]
[1725157380377,4.60462907,2484.7,2484.5,0.00604035]
[1725157380772,4.60462907,2484.8,2484.5,0.00604035]
[1725157381074,4.58245,2484.9,2484.5,0.00604035]
[1725157381481,4.21536392,2484.8,2484.5,0.40854035]
[1725157381677,3.61627035,2485.0,2484.6,1.1916]
[1725157381975,4.63657521,2484.9,2484.6,1.1916]
[1725157382274,3.13,2484.9,2484.6,1.1916]
[1725157382473,7.76657521,2484.9,2484.6,1.1916]
[1725157382683,7.76657521,2484.9,2484.5,0.00604035]
[1725157382684,3.53249,2484.7,2484.5,0.00604035]
[1725157382979,4.26995084,2484.6,2484.5,0.00604035]
[1725157383971,4.67244084,2484.6,2484.5,0.00604035]
[1725157385876,8.69724084,2484.6,2484.5,0.00604035]
[1725157387274,4.67244084,2484.6,2484.5,0.00604035]
[1725157387480,4.26995084,2484.6,2484.5,0.00604035]
[1725157387777,4.67244084,2484.6,2484.5,0.00604035]
[1725157388982,7.88024084,2484.6,2484.5,0.00604035]
[1725157391074,11.90504084,2484.6,2484.5,0.00604035]
[1725157392570,1.00632,2484.4,2483.4,4.13384047]
[1725157392776,0.40268,2483.5,2483.3,2.3046]
[1725157392976,3.2078,2483.7,2483.3,2.3046]
[1725157393173,0.40266,2483.6,2483.3,2.3046]
[1725157393372,0.40269,2483.4,2483.3,2.3046]
[1725157393574,4.73214828,2483.5,2483.3,2.3046]
[1725157393976,0.40269,2483.4,2483.3,2.3046]
[1725157394181,0.40269,2483.4,2483.1,3.21384035]
[1725157394386,4.4316097,2483.4,2483.2,2.2395]
[1725157394768,4.4316097,2483.4,2483.1,0.00604035]
[1725157394769,0.40272,2483.2,2483.1,0.00604035]
[1725157395179,4.86693002,2483.2,2483.1,0.00604035]
[1725157395681,0.00604035,2483.6,2483.1,4.03324035]
[1725157395873,0.00604035,2483.6,2483.2,2.3322]
[1725157396074,4.20007288,2483.5,2483.2,2.73491]
[1725157396275,0.00604035,2483.6,2483.2,6.3594]
[1725157396576,0.00604035,2483.6,2483.2,2.3322]
[1725157396879,0.00604035,2483.6,2483.4,0.40268]
[1725157397077,0.00604035,2483.6,2483.5,1.2157]
[1725157397575,0.00604035,2483.6,2483.5,5.2421]
[1725157398678,0.00604035,2483.6,2483.5,5.64477]
[1725157399483,0.00604035,2483.6,2483.5,5.2421]
[1725157399983,0.00604035,2483.6,2483.5,5.64477]
[1725157400394,0.00604035,2483.6,2483.5,5.2421]
[1725157400883,0.00604035,2483.6,2483.5,5.64477]
[1725157401988,0.00604035,2483.6,2483.5,5.2421]
[1725157403293,0.00604035,2483.6,2483.1,0.00604035]
[1725157403294,11.86647152,2483.6,2483.1,0.00604035]
[1725157403594,7.76227152,2483.6,2483.2,0.40272]
[1725157404495,7.76227152,2483.6,2483.1,0.00604035]
[1725157404496,0.40268,2483.5,2483.1,0.00604035]
[1725157404787,8.16493152,2483.6,2483.1,0.40877035]
[1725157404992,0.40267,2483.5,2483.1,0.00604035]
[1725157405194,4.65552267,2483.4,2483.1,0.00604035]
[1725157405491,4.65552267,2483.5,2483.1,0.40878035]
[1725157405689,0.40267,2483.5,2483.1,0.00604035]
[1725157405889,4.59941887,2483.5,2483.1,0.00604035]
[1725157406283,0.00604035,2483.6,2483.2,0.40271]
[1725157406480,0.00604035,2483.6,2483.3,2.70809]
[1725157406682,0.00604035,2483.6,2483.4,1.1976]
[1725157407392,0.00604035,2483.6,2483.5,0.40267]
[1725157407596,0.00604035,2483.6,2483.5,4.42907]
[1725157408190,3.2078,2484.3,2483.8,0.40262]
[1725157408490,4.29017145,2484.2,2483.8,0.40261]
[1725157408890,4.69273145,2484.2,2483.8,0.40261]
[1725157409290,4.2962118,2484.2,2483.6,3.2078]
[1725157409491,4.2962118,2484.2,2483.6,4.78768741]
[1725157409793,3.13,2483.9,2483.5,4.13384047]
[1725157409988,0.40262,2483.9,2483.5,4.13384047]
[1725157410191,0.40262,2483.9,2483.5,4.53650047]
[1725157410396,0.00604035,2484.2,2483.8,0.40261]
[1725157410694,4.58804052,2484.1,2483.9,1.1832]
[1725157410893,4.99062052,2484.1,2483.9,1.1832]
[1725157411295,0.40259,2484.0,2483.9,1.1832]
[1725157411595,4.58804052,2484.1,2483.9,1.1832]
[1725157411786,4.41484743,2484.0,2483.9,1.1832]
[1725157411991,5.03101056,2484.1,2483.9,1.1832]
[1725157412401,0.40259,2484.1,2483.9,1.1832]
[1725157412595,4.62842056,2484.0,2483.9,1.1832]
[1725157412801,5.03101056,2484.0,2483.6,1.57988741]
[1725157413094,0.40259,2484.0,2483.6,1.57988741]
[1725157413289,0.40259,2484.0,2483.5,6.11638788]
[1725157413498,4.37731096,2483.9,2483.6,3.59382069]
[1725157413800,4.37731096,2483.9,2483.6,1.57988741]
[1725157414494,0.40264,2483.7,2483.5,5.71372788]
[1725157414798,0.40264,2483.7,2483.4,3.96068741]
[1725157414799,4.22017325,2483.6,2483.4,3.96068741]
[1725157415005,3.61593788,2483.6,2483.5,2.01411653]
[1725157416190,3.61593788,2483.6,2483.5,3.59400394]
[1725157416393,0.40263,2483.8,2483.5,7.62040394]
[1725157416699,4.60222003,2483.7,2483.4,3.96068741]
[1725157416902,4.60222003,2483.7,2483.5,3.59391782]
[1725157417106,4.60222003,2483.7,2483.4,3.96068741]
[1725157417294,4.60222003,2483.7,2483.5,2.01410986]
[1725157417496,4.60222003,2483.7,2483.4,3.96068741]
[1725157417694,4.60222003,2483.7,2483.5,2.01408655]
[1725157417899,4.60222003,2483.7,2483.4,3.96068741]
[1725157418103,4.60222003,2483.7,2483.5,2.01411246]
[1725157418293,4.60222003,2483.7,2483.4,3.96068741]
[1725157418489,4.60222003,2483.7,2483.5,2.01411222]
[1725157418700,4.60222003,2483.7,2483.4,3.96068741]
[1725157418998,4.60222003,2483.7,2483.5,2.01411302]
[1725157419204,4.60222003,2483.7,2483.4,3.96068741]
[1725157419395,4.60222003,2483.7,2483.5,2.01408948]
[1725157419594,4.60222003,2483.7,2483.4,3.96068741]
[1725157419790,4.60222003,2483.7,2483.5,2.01408901]
[1725157419992,4.60222003,2483.7,2483.4,3.96068741]
[1725157420192,4.60222003,2483.7,2483.5,2.01408833]
[1725157420399,4.60222003,2483.7,2483.4,3.96068741]
[1725157420600,0.40266,2483.6,2483.5,2.01411221]
[1725157420795,4.60222003,2483.7,2483.4,1.57988741]
[1725157420998,4.60222003,2483.7,2483.2,2.10914079]
[1725157420999,4.74323093,2483.6,2483.3,3.96808741]
[1725157421203,0.40266,2483.6,2483.3,3.96808741]
[1725157421699,4.47885494,2483.5,2483.3,3.96808741]
[1725157422203,4.8444383,2483.6,2483.3,2.3882]
[1725157422404,0.40266,2483.6,2483.3,2.3882]